[Event "Late-Titled-Tuesday-Blitz-October-24-2023"]
[Site "Chess.com"]
[Date "2023.10.24"]
[Round "6"]
[White "ArtemDyachuk"]
[Black "Payyappat"]
[Result "1-0"]
[WhiteElo "2645"]
[BlackElo "2519"]
[TimeControl "180+1"]
[EndTime "15:01:59 PDT"]
[Termination "ArtemDyachuk won by resignation"]

1. e4 {[%clk 0:03:00.9]} 1... c6 {[%clk 0:02:57.7]} 2. Nc3 {[%clk 0:02:58]} 2...
d5 {[%clk 0:02:58.6]} 3. Nf3 {[%clk 0:02:57]} 3... dxe4 {[%clk 0:02:55.6]} 4.
Nxe4 {[%clk 0:02:57.9]} 4... Nf6 {[%clk 0:02:56.5]} 5. Qe2 {[%clk 0:02:54.8]}
5... Nxe4 {[%clk 0:02:52.3]} 6. Qxe4 {[%clk 0:02:55.7]} 6... Nd7 {[%clk
0:02:50.5]} 7. Bc4 {[%clk 0:02:53.8]} 7... Nf6 {[%clk 0:02:48.9]} 8. Ne5 {[%clk
0:02:53.6]} 8... e6 {[%clk 0:02:48.7]} 9. Qe2 {[%clk 0:02:53.1]} 9... b5 {[%clk
0:02:48.3]} 10. Bb3 {[%clk 0:02:51.1]} 10... Qc7 {[%clk 0:02:44.8]} 11. d4
{[%clk 0:02:50]} 11... Bd6 {[%clk 0:02:41.9]} 12. c3 {[%clk 0:02:46.7]} 12...
Bb7 {[%clk 0:02:41.4]} 13. O-O {[%clk 0:02:44.4]} 13... Nd7 {[%clk 0:02:27.6]}
14. Nxf7 {[%clk 0:02:31.2]} 14... Bxh2+ {[%clk 0:02:01.6]} 15. Kh1 {[%clk
0:02:30.6]} 15... O-O {[%clk 0:01:55.5]} 16. Qxe6 {[%clk 0:02:27.5]} 16... Nb6
{[%clk 0:01:31.8]} 17. Ne5+ {[%clk 0:02:25]} 17... Kh8 {[%clk 0:01:31.1]} 18.
Ng6+ {[%clk 0:02:25.5]} 1-0

[Event "Late-Titled-Tuesday-Blitz-October-24-2023"]
[Site "Chess.com"]
[Date "2023.10.24"]
[Round "6"]
[White "ejalmedina"]
[Black "miraitrunks"]
[Result "1-0"]
[WhiteElo "2319"]
[BlackElo "2109"]
[TimeControl "180+1"]
[EndTime "15:02:13 PDT"]
[Termination "ejalmedina won by resignation"]

1. e4 {[%clk 0:03:00.9]} 1... e6 {[%clk 0:02:57.8]} 2. d4 {[%clk 0:02:59.8]}
2... d5 {[%clk 0:02:58.7]} 3. Nd2 {[%clk 0:02:58.8]} 3... dxe4 {[%clk
0:02:58.6]} 4. Nxe4 {[%clk 0:02:59.4]} 4... Bd7 {[%clk 0:02:59.5]} 5. Nf3 {[%clk
0:02:54.5]} 5... Bc6 {[%clk 0:02:59.8]} 6. Bd3 {[%clk 0:02:55.1]} 6... Nf6
{[%clk 0:02:59.2]} 7. Nxf6+ {[%clk 0:02:53.4]} 7... Qxf6 {[%clk 0:03:00.1]} 8.
Be2 {[%clk 0:02:29.1]} 8... h6 {[%clk 0:02:57.4]} 9. O-O {[%clk 0:02:29.1]} 9...
Nd7 {[%clk 0:02:56.2]} 10. c4 {[%clk 0:02:26.4]} 10... Bxf3 {[%clk 0:02:48.5]}
11. Bxf3 {[%clk 0:02:27.3]} 11... c6 {[%clk 0:02:48.8]} 12. Qb3 {[%clk
0:02:02.9]} 12... O-O-O {[%clk 0:02:43.2]} 13. Be3 {[%clk 0:01:56.8]} 13... e5
{[%clk 0:02:39.1]} 14. d5 {[%clk 0:01:53.9]} 14... Nc5 {[%clk 0:02:19.7]} 15.
Qa3 {[%clk 0:01:40.2]} 15... e4 {[%clk 0:02:12.7]} 16. Bg4+ {[%clk 0:01:39.5]}
16... Nd7 {[%clk 0:02:05.9]} 17. Qxa7 {[%clk 0:01:38.4]} 1-0

[Event "Late-Titled-Tuesday-Blitz-October-24-2023"]
[Site "Chess.com"]
[Date "2023.10.24"]
[Round "6"]
[White "falzehope0"]
[Black "Maluco_do_Natal_00"]
[Result "1-0"]
[WhiteElo "2308"]
[BlackElo "2031"]
[TimeControl "180+1"]
[EndTime "15:02:19 PDT"]
[Termination "falzehope0 won by resignation"]

1. d4 {[%clk 0:03:00.9]} 1... d5 {[%clk 0:02:59.8]} 2. e3 {[%clk 0:03:00.3]}
2... Nf6 {[%clk 0:02:59.5]} 3. Bd3 {[%clk 0:02:59.8]} 3... e6 {[%clk 0:02:59.8]}
4. f4 {[%clk 0:02:59.4]} 4... c5 {[%clk 0:02:59.4]} 5. c3 {[%clk 0:02:59.3]}
5... Bd6 {[%clk 0:02:59.7]} 6. Nf3 {[%clk 0:02:59.1]} 6... Nbd7 {[%clk
0:02:59.6]} 7. O-O {[%clk 0:02:58.4]} 7... Qc7 {[%clk 0:02:59.8]} 8. Ne5 {[%clk
0:02:56.5]} 8... a6 {[%clk 0:02:58.4]} 9. Nd2 {[%clk 0:02:56.4]} 9... b5 {[%clk
0:02:58.5]} 10. a3 {[%clk 0:02:55.9]} 10... Bb7 {[%clk 0:02:57.2]} 11. Qf3
{[%clk 0:02:54.8]} 11... g6 {[%clk 0:02:44.2]} 12. Qh3 {[%clk 0:02:53.5]} 12...
c4 {[%clk 0:02:29.2]} 13. Bc2 {[%clk 0:02:52.3]} 13... a5 {[%clk 0:02:29.5]} 14.
Ndf3 {[%clk 0:02:46.9]} 14... Ke7 {[%clk 0:01:14.6]} 15. Ng5 {[%clk 0:02:43]}
15... Raf8 {[%clk 0:01:08.4]} 16. Nexf7 {[%clk 0:02:35.5]} 16... Rxf7 {[%clk
0:01:06.6]} 17. Qxe6+ {[%clk 0:02:34.7]} 1-0

[Event "Late-Titled-Tuesday-Blitz-October-24-2023"]
[Site "Chess.com"]
[Date "2023.10.24"]
[Round "6"]
[White "GiorgianBarbosa"]
[Black "carloseduar100"]
[Result "1-0"]
[WhiteElo "2436"]
[BlackElo "2292"]
[TimeControl "180+1"]
[EndTime "15:02:49 PDT"]
[Termination "GiorgianBarbosa won by checkmate"]

1. e4 {[%clk 0:03:00.9]} 1... e6 {[%clk 0:02:56.8]} 2. d3 {[%clk 0:02:57.8]}
2... d5 {[%clk 0:02:53.9]} 3. Nd2 {[%clk 0:02:58.4]} 3... Nf6 {[%clk 0:02:54.3]}
4. g3 {[%clk 0:02:53.9]} 4... c5 {[%clk 0:02:54.5]} 5. Bg2 {[%clk 0:02:54]} 5...
Nc6 {[%clk 0:02:55.2]} 6. Ngf3 {[%clk 0:02:54.1]} 6... Be7 {[%clk 0:02:56.1]} 7.
O-O {[%clk 0:02:54.5]} 7... b5 {[%clk 0:02:56.7]} 8. Re1 {[%clk 0:02:48.1]} 8...
a5 {[%clk 0:02:56.9]} 9. e5 {[%clk 0:02:46.7]} 9... Nd7 {[%clk 0:02:56.9]} 10.
Nf1 {[%clk 0:02:47.1]} 10... a4 {[%clk 0:02:56.9]} 11. h4 {[%clk 0:02:45.1]}
11... b4 {[%clk 0:02:57.3]} 12. N1h2 {[%clk 0:02:41]} 12... Qc7 {[%clk
0:02:57.6]} 13. Bf4 {[%clk 0:02:39.3]} 13... Nd4 {[%clk 0:02:53.5]} 14. c4
{[%clk 0:02:24.7]} 14... Bb7 {[%clk 0:02:48.8]} 15. Nxd4 {[%clk 0:02:19.1]}
15... cxd4 {[%clk 0:02:48.9]} 16. cxd5 {[%clk 0:02:18.6]} 16... Bxd5 {[%clk
0:02:43]} 17. Bxd5 {[%clk 0:02:08.8]} 17... exd5 {[%clk 0:02:43.4]} 18. e6
{[%clk 0:02:07.6]} 18... Qb6 {[%clk 0:02:20.1]} 19. exd7+ {[%clk 0:02:05.4]}
19... Kxd7 {[%clk 0:02:21]} 20. Qg4+ {[%clk 0:02:02.5]} 20... f5 {[%clk
0:02:03.1]} 21. Qxf5+ {[%clk 0:01:52.3]} 21... Ke8 {[%clk 0:01:59.8]} 22. Rxe7+
{[%clk 0:01:36.8]} 22... Kxe7 {[%clk 0:01:59.5]} 23. Re1+ {[%clk 0:01:37.4]}
23... Kd8 {[%clk 0:01:58.7]} 24. Qxd5+ {[%clk 0:01:37.4]} 24... Kc8 {[%clk
0:01:55.4]} 25. Qxa8+ {[%clk 0:01:35.3]} 25... Kd7 {[%clk 0:01:55.9]} 26. Qxh8
{[%clk 0:01:34.7]} 26... Qf6 {[%clk 0:01:54.1]} 27. Qe8# {[%clk 0:01:32.6]} 1-0

[Event "Late-Titled-Tuesday-Blitz-October-24-2023"]
[Site "Chess.com"]
[Date "2023.10.24"]
[Round "6"]
[White "Chessbard1972"]
[Black "HajiyevKanan"]
[Result "0-1"]
[WhiteElo "2346"]
[BlackElo "2506"]
[TimeControl "180+1"]
[EndTime "15:02:59 PDT"]
[Termination "HajiyevKanan won by resignation"]

1. d4 {[%clk 0:03:00.9]} 1... d5 {[%clk 0:02:51.7]} 2. c4 {[%clk 0:03:00.4]}
2... c6 {[%clk 0:02:52.6]} 3. Nf3 {[%clk 0:02:59.9]} 3... a6 {[%clk 0:02:52.8]}
4. Nbd2 {[%clk 0:02:58.8]} 4... Nf6 {[%clk 0:02:53.4]} 5. g3 {[%clk 0:02:57.9]}
5... g6 {[%clk 0:02:54]} 6. Bg2 {[%clk 0:02:58.1]} 6... Bg7 {[%clk 0:02:54.7]}
7. O-O {[%clk 0:02:58.4]} 7... O-O {[%clk 0:02:55.3]} 8. b3 {[%clk 0:02:58.6]}
8... Ne4 {[%clk 0:02:55.7]} 9. Bb2 {[%clk 0:02:58.7]} 9... Bf5 {[%clk
0:02:54.9]} 10. e3 {[%clk 0:02:58.8]} 10... Nxd2 {[%clk 0:02:53.1]} 11. Qxd2
{[%clk 0:02:58.6]} 11... Be4 {[%clk 0:02:53]} 12. Rac1 {[%clk 0:02:57.5]} 12...
e6 {[%clk 0:02:53.1]} 13. Ne1 {[%clk 0:02:55.9]} 13... Bxg2 {[%clk 0:02:52]} 14.
Kxg2 {[%clk 0:02:56.4]} 14... a5 {[%clk 0:02:52.8]} 15. Nd3 {[%clk 0:02:48.1]}
15... Nd7 {[%clk 0:02:52.6]} 16. cxd5 {[%clk 0:02:45.8]} 16... exd5 {[%clk
0:02:52.7]} 17. Nc5 {[%clk 0:02:45.7]} 17... Nxc5 {[%clk 0:02:49.5]} 18. Rxc5
{[%clk 0:02:42]} 18... Re8 {[%clk 0:02:49.9]} 19. Rfc1 {[%clk 0:02:39.8]} 19...
h5 {[%clk 0:02:46.1]} 20. h4 {[%clk 0:02:39]} 20... Bf8 {[%clk 0:02:44.4]} 21.
R5c2 {[%clk 0:02:37.2]} 21... Qb6 {[%clk 0:02:32]} 22. Qe2 {[%clk 0:02:32.9]}
22... a4 {[%clk 0:02:28.7]} 23. Qd3 {[%clk 0:02:25.6]} 23... axb3 {[%clk
0:02:22.6]} 24. axb3 {[%clk 0:02:25.5]} 24... Ba3 {[%clk 0:02:16.4]} 25. Bxa3
{[%clk 0:02:17.6]} 25... Rxa3 {[%clk 0:02:17.3]} 26. Rc3 {[%clk 0:02:15.9]}
26... Kg7 {[%clk 0:02:14]} 27. R1c2 {[%clk 0:02:15.6]} 27... Qb4 {[%clk
0:02:10.2]} 28. f3 {[%clk 0:02:11]} 28... Ra1 {[%clk 0:02:08]} 29. Rc1 {[%clk
0:02:08.1]} 29... Rea8 {[%clk 0:02:06.9]} 30. Rxa1 {[%clk 0:02:07]} 30... Rxa1
{[%clk 0:02:07.8]} 31. e4 {[%clk 0:02:03.7]} 31... dxe4 {[%clk 0:01:56.6]} 32.
fxe4 {[%clk 0:02:02]} 32... Ra2+ {[%clk 0:01:57.5]} 33. Kh3 {[%clk 0:01:56.8]}
33... Qd6 {[%clk 0:01:54.6]} 34. d5 {[%clk 0:01:42.9]} 34... Qd7+ {[%clk
0:01:53.6]} 0-1

[Event "Late-Titled-Tuesday-Blitz-October-24-2023"]
[Site "Chess.com"]
[Date "2023.10.24"]
[Round "6"]
[White "PapaieDudu"]
[Black "TheMagician"]
[Result "1-0"]
[WhiteElo "2340"]
[BlackElo "2162"]
[TimeControl "180+1"]
[EndTime "15:03:00 PDT"]
[Termination "PapaieDudu won by resignation"]

1. e4 {[%clk 0:03:00.9]} 1... c5 {[%clk 0:02:59.2]} 2. Nf3 {[%clk 0:03:00.7]}
2... d6 {[%clk 0:02:59.5]} 3. d4 {[%clk 0:03:01.2]} 3... cxd4 {[%clk 0:02:59.4]}
4. Nxd4 {[%clk 0:03:01.6]} 4... Nf6 {[%clk 0:02:59.5]} 5. Nc3 {[%clk 0:03:01.8]}
5... a6 {[%clk 0:02:59.7]} 6. f3 {[%clk 0:03:01.6]} 6... e5 {[%clk 0:02:59.7]}
7. Nb3 {[%clk 0:03:02]} 7... Be6 {[%clk 0:03:00.3]} 8. Be3 {[%clk 0:03:02.2]}
8... h5 {[%clk 0:02:59.4]} 9. Qd2 {[%clk 0:03:02.7]} 9... Nbd7 {[%clk
0:02:59.3]} 10. O-O-O {[%clk 0:03:03.4]} 10... Rc8 {[%clk 0:02:58.9]} 11. Nd5
{[%clk 0:03:02.9]} 11... Nxd5 {[%clk 0:02:57.7]} 12. exd5 {[%clk 0:03:03.8]}
12... Bf5 {[%clk 0:02:58.2]} 13. Bd3 {[%clk 0:03:04.3]} 13... Bxd3 {[%clk
0:02:58.2]} 14. Qxd3 {[%clk 0:03:05.2]} 14... Qc7 {[%clk 0:02:54.1]} 15. Kb1
{[%clk 0:03:00.8]} 15... b5 {[%clk 0:02:53.9]} 16. f4 {[%clk 0:03:00.1]} 16...
Be7 {[%clk 0:02:49.2]} 17. Rd2 {[%clk 0:02:50.3]} 17... Bf6 {[%clk 0:02:41.8]}
18. Re1 {[%clk 0:02:48.9]} 18... Kf8 {[%clk 0:02:34.8]} 19. Rf2 {[%clk
0:02:44.6]} 19... exf4 {[%clk 0:02:29.5]} 20. Bxf4 {[%clk 0:02:34.5]} 20... Ne5
{[%clk 0:02:10.9]} 21. Qf5 {[%clk 0:02:34.4]} 21... Kg8 {[%clk 0:02:00.5]} 22.
Nd4 {[%clk 0:02:28.5]} 22... Ng4 {[%clk 0:01:53.6]} 23. Bxd6 {[%clk 0:02:17.1]}
23... Qd8 {[%clk 0:01:32]} 24. Nc6 {[%clk 0:02:11.4]} 24... Nxf2 {[%clk
0:01:26]} 25. Nxd8 {[%clk 0:02:07.2]} 25... Rxd8 {[%clk 0:01:16.6]} 26. Bc7
{[%clk 0:02:01.6]} 1-0

[Event "Late-Titled-Tuesday-Blitz-October-24-2023"]
[Site "Chess.com"]
[Date "2023.10.24"]
[Round "6"]
[White "BeanScreen"]
[Black "balachess2006"]
[Result "1-0"]
[WhiteElo "2713"]
[BlackElo "2569"]
[TimeControl "180+1"]
[EndTime "15:03:06 PDT"]
[Termination "BeanScreen won by resignation"]

1. e4 {[%clk 0:03:00.9]} 1... c5 {[%clk 0:02:56.3]} 2. Nf3 {[%clk 0:02:59.2]}
2... Nc6 {[%clk 0:02:55.2]} 3. Nc3 {[%clk 0:02:58.2]} 3... g6 {[%clk 0:02:55.2]}
4. d4 {[%clk 0:02:58.3]} 4... cxd4 {[%clk 0:02:56.1]} 5. Nxd4 {[%clk 0:02:58.6]}
5... Bg7 {[%clk 0:02:56.8]} 6. Be3 {[%clk 0:02:57.8]} 6... Nf6 {[%clk
0:02:54.8]} 7. Bc4 {[%clk 0:02:58]} 7... O-O {[%clk 0:02:54.5]} 8. Bb3 {[%clk
0:02:57.7]} 8... a5 {[%clk 0:02:54.1]} 9. O-O {[%clk 0:02:56.4]} 9... d6 {[%clk
0:02:53]} 10. h3 {[%clk 0:02:55.1]} 10... Bd7 {[%clk 0:02:50.6]} 11. a4 {[%clk
0:02:51.8]} 11... Nxd4 {[%clk 0:02:45.6]} 12. Bxd4 {[%clk 0:02:51.8]} 12... Bc6
{[%clk 0:02:46.1]} 13. f4 {[%clk 0:02:48.5]} 13... Nxe4 {[%clk 0:02:31]} 14.
Nxe4 {[%clk 0:02:45.9]} 14... Bxe4 {[%clk 0:02:04.2]} 15. Bxg7 {[%clk
0:02:45.4]} 15... Kxg7 {[%clk 0:02:05.1]} 16. Qd4+ {[%clk 0:02:45]} 16... e5
{[%clk 0:02:05.5]} 17. Qxe4 {[%clk 0:02:43.7]} 17... Qb6+ {[%clk 0:02:05.7]} 18.
Kh1 {[%clk 0:02:42.9]} 18... f5 {[%clk 0:02:06.2]} 19. Qd5 {[%clk 0:02:41.1]}
19... e4 {[%clk 0:02:06.7]} 20. Rad1 {[%clk 0:02:40]} 20... Rf6 {[%clk
0:02:07.3]} 21. Qd4 {[%clk 0:02:23.2]} 21... Qc7 {[%clk 0:02:05.8]} 22. g4
{[%clk 0:02:18.2]} 22... fxg4 {[%clk 0:02:05.3]} 23. hxg4 {[%clk 0:02:17.4]}
23... Qd7 {[%clk 0:02:02.7]} 24. f5 {[%clk 0:02:12]} 24... g5 {[%clk 0:02:02.9]}
25. Kg2 {[%clk 0:02:01.7]} 25... Rf8 {[%clk 0:02:01.5]} 26. Rh1 {[%clk
0:02:00.4]} 26... Qc6 {[%clk 0:01:57.9]} 27. c3 {[%clk 0:01:44.2]} 27... e3+
{[%clk 0:01:55.5]} 28. Bd5 {[%clk 0:01:43.7]} 28... Qe8 {[%clk 0:01:49]} 29. Rh3
{[%clk 0:01:37.9]} 29... h6 {[%clk 0:01:48.8]} 30. Rdh1 {[%clk 0:01:36.7]} 30...
Kh7 {[%clk 0:01:49.3]} 31. Rxe3 {[%clk 0:01:33.5]} 1-0

[Event "Late-Titled-Tuesday-Blitz-October-24-2023"]
[Site "Chess.com"]
[Date "2023.10.24"]
[Round "6"]
[White "Apocalyps999"]
[Black "Iball95"]
[Result "1-0"]
[WhiteElo "2344"]
[BlackElo "2792"]
[TimeControl "180+1"]
[EndTime "15:03:13 PDT"]
[Termination "Apocalyps999 won by checkmate"]

1. e4 {[%clk 0:03:00.9]} 1... c5 {[%clk 0:02:59.6]} 2. Nf3 {[%clk 0:03:01]} 2...
e6 {[%clk 0:02:58.2]} 3. g3 {[%clk 0:02:58.2]} 3... d5 {[%clk 0:02:58.4]} 4.
exd5 {[%clk 0:02:56.4]} 4... exd5 {[%clk 0:02:59.3]} 5. d4 {[%clk 0:02:56.7]}
5... Nc6 {[%clk 0:02:59.6]} 6. Bg2 {[%clk 0:02:56.7]} 6... Nf6 {[%clk
0:02:59.9]} 7. O-O {[%clk 0:02:56.7]} 7... Be7 {[%clk 0:03:00.7]} 8. Nc3 {[%clk
0:02:54.6]} 8... O-O {[%clk 0:02:59.5]} 9. Bg5 {[%clk 0:02:54]} 9... cxd4 {[%clk
0:02:52]} 10. Nxd4 {[%clk 0:02:54.9]} 10... h6 {[%clk 0:02:52.3]} 11. Be3 {[%clk
0:02:53.2]} 11... Re8 {[%clk 0:02:45.4]} 12. Re1 {[%clk 0:02:42.8]} 12... Bg4
{[%clk 0:02:39.2]} 13. Qd3 {[%clk 0:02:37.7]} 13... Qd7 {[%clk 0:02:38.7]} 14.
Nb3 {[%clk 0:02:32.2]} 14... Ne5 {[%clk 0:02:33.6]} 15. Qb5 {[%clk 0:02:07.1]}
15... Nf3+ {[%clk 0:02:08.9]} 16. Bxf3 {[%clk 0:02:05.2]} 16... Bxf3 {[%clk
0:02:09.8]} 17. Qxd7 {[%clk 0:02:04.7]} 17... Nxd7 {[%clk 0:02:10.7]} 18. Nd4
{[%clk 0:02:05.2]} 18... Be4 {[%clk 0:02:09.4]} 19. f3 {[%clk 0:02:03.8]} 19...
Bg6 {[%clk 0:02:04.6]} 20. Nxd5 {[%clk 0:02:03.6]} 20... Bc5 {[%clk 0:02:03.7]}
21. c3 {[%clk 0:01:54.8]} 21... Ne5 {[%clk 0:02:00.3]} 22. Kg2 {[%clk
0:01:36.4]} 22... Rad8 {[%clk 0:01:51.9]} 23. Nf4 {[%clk 0:01:35.4]} 23... Bh7
{[%clk 0:01:48]} 24. Rad1 {[%clk 0:01:22.3]} 24... Nc4 {[%clk 0:01:47.1]} 25.
Bc1 {[%clk 0:01:22]} 25... Rxe1 {[%clk 0:01:45.1]} 26. Rxe1 {[%clk 0:01:22.9]}
26... g5 {[%clk 0:01:45.4]} 27. Nh5 {[%clk 0:01:22.7]} 27... Bxd4 {[%clk
0:01:45.3]} 28. cxd4 {[%clk 0:01:22.6]} 28... Rxd4 {[%clk 0:01:46.2]} 29. Re8#
{[%clk 0:01:21.8]} 1-0

[Event "Late-Titled-Tuesday-Blitz-October-24-2023"]
[Site "Chess.com"]
[Date "2023.10.24"]
[Round "6"]
[White "BasilSmash"]
[Black "ural58"]
[Result "1-0"]
[WhiteElo "2637"]
[BlackElo "2509"]
[TimeControl "180+1"]
[EndTime "15:03:47 PDT"]
[Termination "BasilSmash won by resignation"]

1. e4 {[%clk 0:03:00.9]} 1... d5 {[%clk 0:02:41.1]} 2. exd5 {[%clk 0:03:00.4]}
2... Qxd5 {[%clk 0:02:40.3]} 3. Nf3 {[%clk 0:03:00.3]} 3... Bg4 {[%clk
0:02:38.7]} 4. Be2 {[%clk 0:03:00.5]} 4... Nc6 {[%clk 0:02:38.4]} 5. d4 {[%clk
0:03:00.1]} 5... O-O-O {[%clk 0:02:37.8]} 6. c4 {[%clk 0:03:00.3]} 6... Qf5
{[%clk 0:02:37.3]} 7. Be3 {[%clk 0:03:00.4]} 7... Bxf3 {[%clk 0:02:37.3]} 8.
Bxf3 {[%clk 0:03:01]} 8... Nxd4 {[%clk 0:02:37.4]} 9. Bxd4 {[%clk 0:02:55.7]}
9... Qe6+ {[%clk 0:02:37]} 10. Be2 {[%clk 0:02:55.6]} 10... c5 {[%clk
0:02:34.3]} 11. O-O {[%clk 0:02:51]} 11... cxd4 {[%clk 0:02:33.3]} 12. Nd2
{[%clk 0:02:45.3]} 12... Nf6 {[%clk 0:02:29.7]} 13. c5 {[%clk 0:02:42.4]} 13...
Qd7 {[%clk 0:01:45.8]} 14. Rc1 {[%clk 0:02:37.9]} 14... e5 {[%clk 0:01:44.1]}
15. c6 {[%clk 0:02:30.4]} 15... bxc6 {[%clk 0:01:43.2]} 16. Bb5 {[%clk
0:02:29.5]} 16... Kb8 {[%clk 0:01:40.1]} 17. Bxc6 {[%clk 0:02:26.2]} 17... Qc7
{[%clk 0:01:38.8]} 18. Qb3+ {[%clk 0:02:17.5]} 18... Qb6 {[%clk 0:01:38.7]} 19.
Qxf7 {[%clk 0:02:17.2]} 19... Bb4 {[%clk 0:01:27.1]} 20. Ne4 {[%clk 0:01:07.7]}
20... Nxe4 {[%clk 0:01:20.8]} 21. Bxe4 {[%clk 0:01:08.6]} 21... Rdf8 {[%clk
0:01:12]} 22. Qd5 {[%clk 0:01:06.6]} 1-0

[Event "Late-Titled-Tuesday-Blitz-October-24-2023"]
[Site "Chess.com"]
[Date "2023.10.24"]
[Round "6"]
[White "acertijo08"]
[Black "ExchangeAB"]
[Result "0-1"]
[WhiteElo "2352"]
[BlackElo "2508"]
[TimeControl "180+1"]
[EndTime "15:03:58 PDT"]
[Termination "ExchangeAB won by resignation"]

1. e4 {[%clk 0:03:00.9]} 1... c6 {[%clk 0:03:00.2]} 2. d4 {[%clk 0:03:00.7]}
2... d5 {[%clk 0:03:01.1]} 3. exd5 {[%clk 0:03:01]} 3... cxd5 {[%clk 0:03:02]}
4. c4 {[%clk 0:03:01.4]} 4... Nf6 {[%clk 0:03:02.8]} 5. Nc3 {[%clk 0:03:01.3]}
5... e6 {[%clk 0:03:03.3]} 6. Nf3 {[%clk 0:03:01.1]} 6... Bb4 {[%clk 0:03:03.2]}
7. Bd3 {[%clk 0:03:00.9]} 7... Nc6 {[%clk 0:03:03.7]} 8. O-O {[%clk 0:03:00.2]}
8... dxc4 {[%clk 0:03:02.5]} 9. Bxc4 {[%clk 0:03:00.4]} 9... O-O {[%clk
0:03:02]} 10. Bg5 {[%clk 0:03:00]} 10... Be7 {[%clk 0:02:59.5]} 11. a3 {[%clk
0:03:00]} 11... b6 {[%clk 0:02:58.6]} 12. Qd3 {[%clk 0:02:57.8]} 12... Bb7
{[%clk 0:02:53.9]} 13. Rad1 {[%clk 0:02:57.2]} 13... Rc8 {[%clk 0:02:44]} 14.
Ba2 {[%clk 0:02:56.9]} 14... g6 {[%clk 0:02:39.1]} 15. Bh6 {[%clk 0:02:56.2]}
15... Re8 {[%clk 0:02:39.3]} 16. Rfe1 {[%clk 0:02:56]} 16... Bf8 {[%clk
0:02:36.7]} 17. Qd2 {[%clk 0:02:46.5]} 17... Bg7 {[%clk 0:02:28]} 18. Bxg7
{[%clk 0:02:34.6]} 18... Kxg7 {[%clk 0:02:28.9]} 19. Qf4 {[%clk 0:02:24]} 19...
Ne7 {[%clk 0:02:08.8]} 20. Ne5 {[%clk 0:02:15.5]} 20... Ned5 {[%clk 0:02:06.9]}
21. Nxd5 {[%clk 0:02:15.6]} 21... Bxd5 {[%clk 0:02:07.5]} 22. Bb1 {[%clk
0:02:12.5]} 22... Re7 {[%clk 0:01:58.7]} 23. h4 {[%clk 0:02:02]} 23... Rec7
{[%clk 0:01:54.7]} 24. Rd3 {[%clk 0:01:52.8]} 24... Nh5 {[%clk 0:01:35.5]} 25.
Qd2 {[%clk 0:01:35.6]} 25... Qxh4 {[%clk 0:01:20.8]} 26. Rh3 {[%clk 0:01:18.6]}
26... Qf4 {[%clk 0:01:19.9]} 27. Qe2 {[%clk 0:01:10.4]} 27... Rc1 {[%clk
0:01:15.3]} 28. Bd3 {[%clk 0:01:01.5]} 28... Rxe1+ {[%clk 0:01:13.5]} 0-1

[Event "Late-Titled-Tuesday-Blitz-October-24-2023"]
[Site "Chess.com"]
[Date "2023.10.24"]
[Round "6"]
[White "whiteglovethief"]
[Black "mind1mover"]
[Result "0-1"]
[WhiteElo "2519"]
[BlackElo "2798"]
[TimeControl "180+1"]
[EndTime "15:04:11 PDT"]
[Termination "mind1mover won by resignation"]

1. d4 {[%clk 0:03:00.9]} 1... Nf6 {[%clk 0:02:59.5]} 2. c4 {[%clk 0:03:01]} 2...
Nc6 {[%clk 0:02:51.7]} 3. Nf3 {[%clk 0:03:00.4]} 3... e6 {[%clk 0:02:49.5]} 4.
g3 {[%clk 0:02:59.7]} 4... g6 {[%clk 0:02:49.3]} 5. Bg2 {[%clk 0:02:59.2]} 5...
Bg7 {[%clk 0:02:50]} 6. d5 {[%clk 0:02:57.7]} 6... Ne7 {[%clk 0:02:45.3]} 7. Nc3
{[%clk 0:02:55.6]} 7... d6 {[%clk 0:02:44.1]} 8. dxe6 {[%clk 0:02:54.8]} 8...
fxe6 {[%clk 0:02:42.6]} 9. O-O {[%clk 0:02:51.9]} 9... O-O {[%clk 0:02:42.4]}
10. Qc2 {[%clk 0:02:48.2]} 10... e5 {[%clk 0:02:42.4]} 11. b3 {[%clk 0:02:46.8]}
11... Bf5 {[%clk 0:02:41.9]} 12. e4 {[%clk 0:02:46.1]} 12... Bg4 {[%clk
0:02:41.3]} 13. Nd2 {[%clk 0:02:40.1]} 13... Nc6 {[%clk 0:02:41.6]} 14. f3
{[%clk 0:02:37.5]} 14... Nd4 {[%clk 0:02:35.9]} 15. Qd3 {[%clk 0:02:37.8]} 15...
Be6 {[%clk 0:02:36.4]} 16. Bb2 {[%clk 0:02:32.7]} 16... Nd7 {[%clk 0:02:36.1]}
17. b4 {[%clk 0:02:14.7]} 17... c5 {[%clk 0:02:35.6]} 18. a3 {[%clk 0:02:13.3]}
18... a5 {[%clk 0:02:34.4]} 19. b5 {[%clk 0:02:10.3]} 19... a4 {[%clk
0:02:34.7]} 20. Nd5 {[%clk 0:02:08.3]} 20... Nf6 {[%clk 0:02:20.4]} 21. Bxd4
{[%clk 0:02:05.8]} 21... cxd4 {[%clk 0:02:17.5]} 22. f4 {[%clk 0:02:03.3]} 22...
Ng4 {[%clk 0:02:11.8]} 23. Rae1 {[%clk 0:01:57]} 23... Bxd5 {[%clk 0:02:10.7]}
24. cxd5 {[%clk 0:01:55]} 24... Ne3 {[%clk 0:02:11.6]} 25. Rxe3 {[%clk
0:01:53.7]} 25... dxe3 {[%clk 0:02:11.5]} 26. Nc4 {[%clk 0:01:51.3]} 26... Rc8
{[%clk 0:02:04]} 27. b6 {[%clk 0:01:45.1]} 27... exf4 {[%clk 0:01:39.2]} 28.
gxf4 {[%clk 0:01:46]} 28... Qh4 {[%clk 0:01:39.4]} 29. Nxd6 {[%clk 0:01:40.9]}
29... Rc3 {[%clk 0:01:38.8]} 30. Qb5 {[%clk 0:01:28.5]} 30... Rc2 {[%clk
0:01:37.4]} 31. Qxa4 {[%clk 0:01:21.9]} 31... Rxg2+ {[%clk 0:01:30.1]} 32. Kxg2
{[%clk 0:01:21.4]} 32... e2 {[%clk 0:01:27.6]} 33. Qc4 {[%clk 0:01:10.6]} 33...
Qg4+ {[%clk 0:01:23.6]} 34. Kh1 {[%clk 0:01:08.4]} 34... exf1=Q+ {[%clk
0:01:21.1]} 35. Qxf1 {[%clk 0:01:09]} 35... Rxf4 {[%clk 0:01:20.8]} 0-1